[Event "Early-Titled-Tuesday-Blitz-September-05-2023"]
[Site "Chess.com"]
[Date "2023.09.05"]
[Round "1"]
[White "EvgenyBurmakin"]
[Black "jsdbv18"]
[Result "1/2-1/2"]
[WhiteElo "2295"]
[BlackElo "2597"]
[TimeControl "180+1"]
[EndTime "8:08:04 PDT"]
[Termination "Game drawn - insufficient material"]

1. e4 {[%clk 0:02:59.3]} 1... e5 {[%clk 0:02:59.9]} 2. Nf3 {[%clk 0:02:58.3]}
2... Nc6 {[%clk 0:03:00.5]} 3. Bb5 {[%clk 0:02:58.3]} 3... a6 {[%clk 0:03:00.2]}
4. Ba4 {[%clk 0:02:58.6]} 4... Nf6 {[%clk 0:02:59.1]} 5. O-O {[%clk 0:02:56.2]}
5... Nxe4 {[%clk 0:02:57.4]} 6. d4 {[%clk 0:02:41.2]} 6... b5 {[%clk 0:02:55.6]}
7. Bb3 {[%clk 0:02:40.3]} 7... d5 {[%clk 0:02:56.4]} 8. dxe5 {[%clk 0:02:37.8]}
8... Be6 {[%clk 0:02:55.6]} 9. c3 {[%clk 0:02:36.6]} 9... Be7 {[%clk 0:02:53.7]}
10. Nbd2 {[%clk 0:02:34.4]} 10... O-O {[%clk 0:02:52.3]} 11. Bc2 {[%clk
0:02:23.4]} 11... f5 {[%clk 0:02:50.8]} 12. exf6 {[%clk 0:02:20.7]} 12... Nxf6
{[%clk 0:02:50.7]} 13. Re1 {[%clk 0:02:18.2]} 13... Bg4 {[%clk 0:02:45.7]} 14.
h3 {[%clk 0:02:16.3]} 14... Bh5 {[%clk 0:02:45.5]} 15. a4 {[%clk 0:02:01]} 15...
b4 {[%clk 0:02:41.7]} 16. a5 {[%clk 0:01:55.9]} 16... bxc3 {[%clk 0:02:37.1]}
17. bxc3 {[%clk 0:01:56.8]} 17... Bc5 {[%clk 0:02:29.5]} 18. Qe2 {[%clk
0:01:23.3]} 18... Re8 {[%clk 0:02:21.1]} 19. Qf1 {[%clk 0:01:20.6]} 19... Rxe1
{[%clk 0:02:16.5]} 20. Qxe1 {[%clk 0:01:21.5]} 20... Qd6 {[%clk 0:02:13.5]} 21.
Qf1 {[%clk 0:01:09]} 21... Re8 {[%clk 0:02:09.5]} 22. Qxa6 {[%clk 0:01:04.9]}
22... Ne4 {[%clk 0:01:53.2]} 23. Nxe4 {[%clk 0:00:37.1]} 23... dxe4 {[%clk
0:01:52.2]} 24. Ne1 {[%clk 0:00:31.1]} 24... Rf8 {[%clk 0:00:19.6]} 25. Be3
{[%clk 0:00:24.4]} 25... Bxe3 {[%clk 0:00:19.3]} 26. fxe3 {[%clk 0:00:25.3]}
26... Qh6 {[%clk 0:00:18.9]} 27. Bb3+ {[%clk 0:00:18.5]} 27... Kh8 {[%clk
0:00:18.4]} 28. Nc2 {[%clk 0:00:18.1]} 28... Qf6 {[%clk 0:00:13.9]} 29. Rf1
{[%clk 0:00:16.3]} 29... Qxf1+ {[%clk 0:00:14.3]} 30. Qxf1 {[%clk 0:00:16.1]}
30... Rxf1+ {[%clk 0:00:15.2]} 31. Kxf1 {[%clk 0:00:16.7]} 31... Nxa5 {[%clk
0:00:16.1]} 32. Bd5 {[%clk 0:00:15.6]} 32... Bg6 {[%clk 0:00:15.1]} 33. Nd4
{[%clk 0:00:12.6]} 33... h5 {[%clk 0:00:12.4]} 34. Kf2 {[%clk 0:00:12.7]} 34...
Kh7 {[%clk 0:00:12.3]} 35. Kg3 {[%clk 0:00:12.4]} 35... Kh6 {[%clk 0:00:11.2]}
36. Kf4 {[%clk 0:00:12.8]} 36... h4 {[%clk 0:00:11.3]} 37. Bxe4 {[%clk
0:00:12.4]} 37... Nc4 {[%clk 0:00:09.8]} 38. Bxg6 {[%clk 0:00:11.8]} 38... Kxg6
{[%clk 0:00:10.6]} 39. e4 {[%clk 0:00:10.9]} 39... Kf6 {[%clk 0:00:10.8]} 40.
Kg4 {[%clk 0:00:08.6]} 40... g5 {[%clk 0:00:10.4]} 41. Nf3 {[%clk 0:00:07.4]}
41... Ne3+ {[%clk 0:00:09.9]} 42. Kh5 {[%clk 0:00:06.5]} 42... Nxg2 {[%clk
0:00:08.8]} 43. Nxg5 {[%clk 0:00:07]} 43... Nf4+ {[%clk 0:00:08.6]} 44. Kxh4
{[%clk 0:00:06.5]} 44... Ng6+ {[%clk 0:00:08.3]} 45. Kg4 {[%clk 0:00:06.6]}
45... Ne5+ {[%clk 0:00:08.2]} 46. Kf4 {[%clk 0:00:06.7]} 46... Ng6+ {[%clk
0:00:08.7]} 47. Kg3 {[%clk 0:00:06.7]} 47... Kxg5 {[%clk 0:00:08.9]} 48. Kf3
{[%clk 0:00:04.4]} 48... c5 {[%clk 0:00:07.7]} 49. Ke3 {[%clk 0:00:05.1]} 49...
Kh4 {[%clk 0:00:06.3]} 50. e5 {[%clk 0:00:04.5]} 50... Nxe5 {[%clk 0:00:06.1]}
51. Ke4 {[%clk 0:00:05]} 51... Nd7 {[%clk 0:00:04.8]} 52. Kd5 {[%clk 0:00:05.4]}
52... c4 {[%clk 0:00:02.7]} 53. Kxc4 {[%clk 0:00:05.3]} 53... Kxh3 {[%clk
0:00:03.5]} 54. Kd5 {[%clk 0:00:05.8]} 54... Kg4 {[%clk 0:00:04.2]} 55. c4
{[%clk 0:00:06.3]} 55... Nb6+ {[%clk 0:00:04.4]} 56. Kd6 {[%clk 0:00:07.2]}
56... Nxc4+ {[%clk 0:00:04.9]} 1/2-1/2

[Event "Early-Titled-Tuesday-Blitz-September-05-2023"]
[Site "Chess.com"]
[Date "2023.09.05"]
[Round "1"]
[White "ViIIagra"]
[Black "Tactictic"]
[Result "1-0"]
[WhiteElo "2954"]
[BlackElo "2513"]
[TimeControl "180+1"]
[EndTime "8:08:07 PDT"]
[Termination "ViIIagra won by checkmate"]

1. d4 {[%clk 0:02:56.9]} 1... f5 {[%clk 0:02:59.2]} 2. g3 {[%clk 0:02:52.4]}
2... Nf6 {[%clk 0:02:59.5]} 3. Bg2 {[%clk 0:02:53]} 3... d5 {[%clk 0:03:00.1]}
4. Nh3 {[%clk 0:02:52.7]} 4... e6 {[%clk 0:02:58.3]} 5. c4 {[%clk 0:02:51.6]}
5... Bd6 {[%clk 0:02:58.4]} 6. Nc3 {[%clk 0:02:51.4]} 6... c6 {[%clk 0:02:55.8]}
7. Bf4 {[%clk 0:02:48.4]} 7... Be7 {[%clk 0:02:55.7]} 8. a3 {[%clk 0:02:38.6]}
8... O-O {[%clk 0:02:55.8]} 9. Qd3 {[%clk 0:02:15.8]} 9... Nh5 {[%clk
0:02:55.5]} 10. Bd2 {[%clk 0:02:14.5]} 10... Nd7 {[%clk 0:02:55]} 11. Nf4 {[%clk
0:02:14.2]} 11... Nxf4 {[%clk 0:02:54.4]} 12. gxf4 {[%clk 0:02:14.3]} 12... Bf6
{[%clk 0:02:53.2]} 13. h4 {[%clk 0:02:09.8]} 13... c5 {[%clk 0:02:51.8]} 14.
cxd5 {[%clk 0:02:02.9]} 14... cxd4 {[%clk 0:02:51.7]} 15. Na4 {[%clk 0:01:58.1]}
15... e5 {[%clk 0:02:51]} 16. Qxf5 {[%clk 0:01:49.7]} 16... Nb6 {[%clk
0:02:24.1]} 17. Qc2 {[%clk 0:01:31]} 17... Nxd5 {[%clk 0:02:22.3]} 18. fxe5
{[%clk 0:01:29.8]} 18... Bxe5 {[%clk 0:02:18.5]} 19. Qe4 {[%clk 0:01:29.7]}
19... Nf4 {[%clk 0:02:11.9]} 20. Bxf4 {[%clk 0:01:02.1]} 20... Bxf4 {[%clk
0:02:12.8]} 21. Qd5+ {[%clk 0:01:02.8]} 21... Kh8 {[%clk 0:02:08.1]} 22. Qxd8
{[%clk 0:01:01.6]} 22... Rxd8 {[%clk 0:02:09]} 23. Nc5 {[%clk 0:01:02.3]} 23...
Rb8 {[%clk 0:01:59.6]} 24. Bh3 {[%clk 0:01:01.9]} 24... b6 {[%clk 0:01:57]} 25.
Nd3 {[%clk 0:01:02.2]} 25... Bb7 {[%clk 0:01:55.5]} 26. Rg1 {[%clk 0:01:02.5]}
26... Bh6 {[%clk 0:01:55]} 27. Kf1 {[%clk 0:01:01.6]} 27... Re8 {[%clk
0:01:52.4]} 28. Rd1 {[%clk 0:01:00.7]} 28... Ba6 {[%clk 0:01:51.5]} 29. Bg4
{[%clk 0:00:50.9]} 29... Re4 {[%clk 0:01:47.8]} 30. h5 {[%clk 0:00:47.7]} 30...
Rf8 {[%clk 0:01:44.9]} 31. Bf3 {[%clk 0:00:45.8]} 31... Re7 {[%clk 0:01:28.1]}
32. Rg4 {[%clk 0:00:45.2]} 32... Rd7 {[%clk 0:01:16.9]} 33. Kg2 {[%clk
0:00:42.9]} 33... Rf5 {[%clk 0:01:16.8]} 34. Re4 {[%clk 0:00:39]} 34... Kg8
{[%clk 0:01:15.3]} 35. Bg4 {[%clk 0:00:33]} 35... Bb7 {[%clk 0:00:49.8]} 36.
Bxf5 {[%clk 0:00:32.5]} 36... Rf7 {[%clk 0:00:49.9]} 37. f3 {[%clk 0:00:26.3]}
37... Rxf5 {[%clk 0:00:50.1]} 38. Rxd4 {[%clk 0:00:26.4]} 38... Bc6 {[%clk
0:00:44.9]} 39. Nf2 {[%clk 0:00:24.6]} 39... Rxh5 {[%clk 0:00:40.3]} 40. Rc4
{[%clk 0:00:24.8]} 40... Bd5 {[%clk 0:00:27.7]} 41. Rc8+ {[%clk 0:00:23.7]}
41... Kf7 {[%clk 0:00:27.8]} 42. Ng4 {[%clk 0:00:22.4]} 42... Bf4 {[%clk
0:00:25.9]} 43. Rh1 {[%clk 0:00:16.9]} 43... Rg5 {[%clk 0:00:25.4]} 44. Rxh7
{[%clk 0:00:16.9]} 44... Rxg4+ {[%clk 0:00:25.9]} 45. Kf2 {[%clk 0:00:14.3]}
45... Rg6 {[%clk 0:00:24.3]} 46. e3 {[%clk 0:00:14]} 46... Be5 {[%clk
0:00:24.2]} 47. Rhh8 {[%clk 0:00:14.1]} 47... Rf6 {[%clk 0:00:23]} 48. Rce8
{[%clk 0:00:14.3]} 48... Rxf3+ {[%clk 0:00:22.6]} 49. Ke2 {[%clk 0:00:14.9]}
49... Bf6 {[%clk 0:00:20.3]} 50. e4 {[%clk 0:00:15.6]} 50... Rb3 {[%clk
0:00:13.6]} 51. exd5 {[%clk 0:00:15.7]} 51... Bxb2 {[%clk 0:00:13.4]} 52. Rhf8+
{[%clk 0:00:15.2]} 52... Kg6 {[%clk 0:00:14]} 53. d6 {[%clk 0:00:15.9]} 53...
Bxa3 {[%clk 0:00:12.6]} 54. d7 {[%clk 0:00:15.2]} 54... Bxf8 {[%clk 0:00:13.3]}
55. d8=Q {[%clk 0:00:15.2]} 55... Bc5 {[%clk 0:00:13.6]} 56. Qd5 {[%clk
0:00:13.9]} 56... Rb2+ {[%clk 0:00:13.2]} 57. Kd1 {[%clk 0:00:12.9]} 57... Rb1+
{[%clk 0:00:09.9]} 58. Kc2 {[%clk 0:00:12.9]} 58... Rg1 {[%clk 0:00:10.8]} 59.
Re6+ {[%clk 0:00:13.3]} 59... Kh7 {[%clk 0:00:06.1]} 60. Qh5+ {[%clk 0:00:13.6]}
60... Kg8 {[%clk 0:00:07]} 61. Re8+ {[%clk 0:00:13.8]} 61... Bf8 {[%clk
0:00:07.9]} 62. Qd5+ {[%clk 0:00:14.3]} 62... Kh7 {[%clk 0:00:08.4]} 63. Rxf8
{[%clk 0:00:15.2]} 63... a5 {[%clk 0:00:07.8]} 64. Qh5# {[%clk 0:00:15]} 1-0

[Event "Early-Titled-Tuesday-Blitz-September-05-2023"]
[Site "Chess.com"]
[Date "2023.09.05"]
[Round "1"]
[White "AndreiITrifan"]
[Black "IsuruAlahakoon"]
[Result "1-0"]
[WhiteElo "2606"]
[BlackElo "2272"]
[TimeControl "180+1"]
[EndTime "8:08:14 PDT"]
[Termination "AndreiITrifan won on time"]

1. e4 {[%clk 0:03:00.7]} 1... d5 {[%clk 0:02:59.5]} 2. exd5 {[%clk 0:03:00.6]}
2... Qxd5 {[%clk 0:03:00.2]} 3. Nc3 {[%clk 0:02:59.9]} 3... Qa5 {[%clk
0:03:00.3]} 4. Nf3 {[%clk 0:02:59.1]} 4... Nf6 {[%clk 0:03:00.7]} 5. Bc4 {[%clk
0:02:55.1]} 5... Bg4 {[%clk 0:03:00.5]} 6. h3 {[%clk 0:02:54.6]} 6... Bh5 {[%clk
0:03:00.7]} 7. g4 {[%clk 0:02:52.1]} 7... Bg6 {[%clk 0:03:00.7]} 8. d3 {[%clk
0:02:51.2]} 8... Nc6 {[%clk 0:03:00]} 9. Bd2 {[%clk 0:02:48.2]} 9... O-O-O
{[%clk 0:02:59.6]} 10. Nd5 {[%clk 0:02:41.3]} 10... Qc5 {[%clk 0:02:58.6]} 11.
Be3 {[%clk 0:02:37.9]} 11... Qd6 {[%clk 0:02:57.6]} 12. Nxf6 {[%clk 0:02:35.9]}
12... gxf6 {[%clk 0:02:58.5]} 13. Qe2 {[%clk 0:02:32.7]} 13... Qb4+ {[%clk
0:02:50.3]} 14. c3 {[%clk 0:02:31]} 14... Qd6 {[%clk 0:02:47.2]} 15. O-O-O
{[%clk 0:02:19.2]} 15... Na5 {[%clk 0:02:46.5]} 16. Nh4 {[%clk 0:01:59.3]} 16...
e6 {[%clk 0:02:38.7]} 17. Qf3 {[%clk 0:01:43.5]} 17... Nxc4 {[%clk 0:02:16.1]}
18. dxc4 {[%clk 0:01:44.4]} 18... Bd3 {[%clk 0:02:15.4]} 19. Bxa7 {[%clk
0:01:09.8]} 19... Bh6+ {[%clk 0:02:07.2]} 20. Be3 {[%clk 0:01:09.2]} 20... Bg5
{[%clk 0:02:07.4]} 21. Ng2 {[%clk 0:01:08.7]} 21... Qa6 {[%clk 0:02:07]} 22.
Bxg5 {[%clk 0:01:05.1]} 22... Qxc4 {[%clk 0:01:31]} 23. Bxf6 {[%clk 0:00:50.7]}
23... Be4 {[%clk 0:01:30.8]} 24. Qf4 {[%clk 0:00:44.8]} 24... Qe2 {[%clk
0:01:12.6]} 25. Ne3 {[%clk 0:00:22]} 25... Bxh1 {[%clk 0:01:02.7]} 26. Bxd8
{[%clk 0:00:21.9]} 26... Rxd8 {[%clk 0:01:01.1]} 27. Rxh1 {[%clk 0:00:21.6]}
27... Rd2 {[%clk 0:00:54.5]} 28. Rd1 {[%clk 0:00:22]} 28... Qxf2 {[%clk
0:00:46.7]} 29. Qxf2 {[%clk 0:00:20.1]} 29... Rxf2 {[%clk 0:00:47.6]} 30. Rf1
{[%clk 0:00:21]} 30... Re2 {[%clk 0:00:44.5]} 31. Nc4 {[%clk 0:00:21.4]} 31...
Rh2 {[%clk 0:00:39.1]} 32. Rxf7 {[%clk 0:00:21.3]} 32... Rxh3 {[%clk 0:00:39.7]}
33. Kc2 {[%clk 0:00:21]} 33... Rh4 {[%clk 0:00:36.7]} 34. Ne5 {[%clk 0:00:21.4]}
34... b6 {[%clk 0:00:35.4]} 35. Rf8+ {[%clk 0:00:21.7]} 35... Kb7 {[%clk
0:00:35.4]} 36. Re8 {[%clk 0:00:22.6]} 36... Rh2+ {[%clk 0:00:31.9]} 37. Kb3
{[%clk 0:00:22.8]} 37... Re2 {[%clk 0:00:30.1]} 38. Rxe6 {[%clk 0:00:22.9]}
38... Re4 {[%clk 0:00:29.1]} 39. Re7 {[%clk 0:00:23.1]} 39... Re2 {[%clk
0:00:24.2]} 40. g5 {[%clk 0:00:23.5]} 40... Rg2 {[%clk 0:00:21.8]} 41. Rg7
{[%clk 0:00:23.8]} 41... Re2 {[%clk 0:00:20.7]} 42. Nf7 {[%clk 0:00:24]} 42...
Rh2 {[%clk 0:00:20.6]} 43. Nh6 {[%clk 0:00:23.4]} 43... Rg2 {[%clk 0:00:19.6]}
44. Nf7 {[%clk 0:00:23.9]} 44... Rh2 {[%clk 0:00:19.6]} 45. Nd8+ {[%clk
0:00:24.5]} 45... Ka6 {[%clk 0:00:18.6]} 46. Ne6 {[%clk 0:00:25.4]} 46... c5
{[%clk 0:00:18.1]} 47. a4 {[%clk 0:00:25.7]} 47... Rh3 {[%clk 0:00:16.3]} 48.
Nc7+ {[%clk 0:00:25.8]} 48... Kb7 {[%clk 0:00:15.8]} 49. Nb5+ {[%clk 0:00:26.7]}
49... Kc6 {[%clk 0:00:15.9]} 50. Nc7 {[%clk 0:00:26.7]} 50... Rh2 {[%clk
0:00:15]} 51. Ne8 {[%clk 0:00:26.9]} 51... Rh3 {[%clk 0:00:14.1]} 52. Nf6 {[%clk
0:00:27.1]} 52... Rg3 {[%clk 0:00:13.3]} 53. Nxh7 {[%clk 0:00:27]} 53... Kd5
{[%clk 0:00:13]} 54. Nf6+ {[%clk 0:00:27.3]} 54... Kc6 {[%clk 0:00:12.2]} 55.
Ng8 {[%clk 0:00:26.7]} 55... b5 {[%clk 0:00:12.3]} 56. axb5+ {[%clk 0:00:26.8]}
56... Kxb5 {[%clk 0:00:13.2]} 57. g6 {[%clk 0:00:27.4]} 57... c4+ {[%clk
0:00:13.2]} 58. Kc2 {[%clk 0:00:27.4]} 58... Rg2+ {[%clk 0:00:13.6]} 59. Kb1
{[%clk 0:00:27.7]} 59... Ka4 {[%clk 0:00:12.4]} 60. Ka2 {[%clk 0:00:28.3]} 60...
Kb5 {[%clk 0:00:11.5]} 61. Rb7+ {[%clk 0:00:28.1]} 61... Kc6 {[%clk 0:00:11.5]}
62. Rb4 {[%clk 0:00:28]} 62... Rxg6 {[%clk 0:00:10.6]} 63. Ne7+ {[%clk
0:00:28.3]} 1-0

[Event "Early-Titled-Tuesday-Blitz-September-05-2023"]
[Site "Chess.com"]
[Date "2023.09.05"]
[Round "1"]
[White "Maus7"]
[Black "Murad_Ibrahimli"]
[Result "1/2-1/2"]
[WhiteElo "2486"]
[BlackElo "2854"]
[TimeControl "180+1"]
[EndTime "8:08:18 PDT"]
[Termination "Game drawn - insufficient material"]

1. e4 {[%clk 0:03:00.9]} 1... e5 {[%clk 0:02:58.8]} 2. Nf3 {[%clk 0:03:01.5]}
2... Nc6 {[%clk 0:02:59.4]} 3. Bc4 {[%clk 0:03:01.9]} 3... Nf6 {[%clk
0:02:58.5]} 4. Ng5 {[%clk 0:03:02.1]} 4... d5 {[%clk 0:02:58.3]} 5. exd5 {[%clk
0:03:03]} 5... Na5 {[%clk 0:02:58.8]} 6. Bb5+ {[%clk 0:03:03.3]} 6... c6 {[%clk
0:02:59.5]} 7. dxc6 {[%clk 0:03:04.2]} 7... bxc6 {[%clk 0:03:00.1]} 8. Bd3
{[%clk 0:03:04.5]} 8... Nd5 {[%clk 0:02:46]} 9. h4 {[%clk 0:03:05]} 9... h6
{[%clk 0:02:43.8]} 10. Qh5 {[%clk 0:03:05.2]} 10... Qe7 {[%clk 0:01:51.4]} 11.
Nxf7 {[%clk 0:03:04.3]} 11... Nf4 {[%clk 0:01:51.3]} 12. Nd6+ {[%clk 0:02:44.4]}
12... Kd7 {[%clk 0:01:51.2]} 13. Nxc8 {[%clk 0:02:41.7]} 13... Kxc8 {[%clk
0:01:28.1]} 14. Qg4+ {[%clk 0:02:37.2]} 14... Kc7 {[%clk 0:01:28.3]} 15. Be4
{[%clk 0:02:35.1]} 15... h5 {[%clk 0:01:24.2]} 16. Qf3 {[%clk 0:02:29.5]} 16...
g5 {[%clk 0:01:19.4]} 17. Qc3 {[%clk 0:02:13.8]} 17... Qc5 {[%clk 0:01:02.9]}
18. hxg5 {[%clk 0:02:07.3]} 18... h4 {[%clk 0:00:58.3]} 19. b3 {[%clk
0:01:06.3]} 19... Qxc3 {[%clk 0:00:50.9]} 20. Nxc3 {[%clk 0:01:05.9]} 20... Be7
{[%clk 0:00:46.3]} 21. Bb2 {[%clk 0:00:59.1]} 21... Bxg5 {[%clk 0:00:45.8]} 22.
Nb5+ {[%clk 0:00:29.8]} 22... cxb5 {[%clk 0:00:45.1]} 23. Bxe5+ {[%clk
0:00:29.7]} 23... Kd7 {[%clk 0:00:38.7]} 24. Bxf4 {[%clk 0:00:28.8]} 24... Bxf4
{[%clk 0:00:32.6]} 25. Bxa8 {[%clk 0:00:29.3]} 25... Rxa8 {[%clk 0:00:32.6]} 26.
Rxh4 {[%clk 0:00:29.4]} 26... Be5 {[%clk 0:00:32.5]} 27. O-O-O {[%clk
0:00:27.8]} 27... Nc6 {[%clk 0:00:33.1]} 28. d4 {[%clk 0:00:24.2]} 28... Bf6
{[%clk 0:00:31.6]} 29. Rh7+ {[%clk 0:00:22.6]} 29... Kd6 {[%clk 0:00:32.3]} 30.
Rh6 {[%clk 0:00:17.7]} 30... Rf8 {[%clk 0:00:32.9]} 31. f4 {[%clk 0:00:13.8]}
31... Kd5 {[%clk 0:00:29.9]} 32. c3 {[%clk 0:00:14]} 32... Ke4 {[%clk
0:00:23.2]} 33. d5 {[%clk 0:00:09.9]} 33... Nd8 {[%clk 0:00:19.2]} 34. g3 {[%clk
0:00:06.7]} 34... Bxc3 {[%clk 0:00:17.5]} 35. Ra6 {[%clk 0:00:06.8]} 35... b4
{[%clk 0:00:13.7]} 36. Rxa7 {[%clk 0:00:06]} 36... Rh8 {[%clk 0:00:13.8]} 37.
Re7+ {[%clk 0:00:05.8]} 37... Kf5 {[%clk 0:00:12.8]} 38. Re2 {[%clk 0:00:03.8]}
38... Nb7 {[%clk 0:00:11.6]} 39. d6 {[%clk 0:00:03.5]} 39... Rd8 {[%clk
0:00:12]} 40. d7 {[%clk 0:00:04.1]} 40... Kg4 {[%clk 0:00:12.7]} 41. Re8 {[%clk
0:00:02.9]} 41... Kxg3 {[%clk 0:00:11.9]} 42. Rxd8 {[%clk 0:00:03.4]} 42... Nxd8
{[%clk 0:00:12.8]} 43. f5 {[%clk 0:00:04.1]} 43... Kf4 {[%clk 0:00:12.6]} 44.
Rd5 {[%clk 0:00:02.8]} 44... Be5 {[%clk 0:00:09.7]} 45. Kc2 {[%clk 0:00:02.2]}
45... Kxf5 {[%clk 0:00:09.9]} 46. Kd3 {[%clk 0:00:02.5]} 46... Ke6 {[%clk
0:00:10.4]} 47. Kc4 {[%clk 0:00:01.8]} 47... Bd6 {[%clk 0:00:10.2]} 48. Rd3
{[%clk 0:00:01.4]} 48... Kxd7 {[%clk 0:00:10.2]} 49. Kb5 {[%clk 0:00:01.2]}
49... Kc7 {[%clk 0:00:09.1]} 50. Ka4 {[%clk 0:00:01.6]} 50... Nb7 {[%clk
0:00:09.4]} 51. Rxd6 {[%clk 0:00:01.1]} 51... Kxd6 {[%clk 0:00:09.3]} 52. Kxb4
{[%clk 0:00:02]} 52... Kc6 {[%clk 0:00:09.7]} 53. a4 {[%clk 0:00:02.9]} 53...
Kb6 {[%clk 0:00:10.3]} 54. Ka3 {[%clk 0:00:03.8]} 54... Nc5 {[%clk 0:00:08.9]}
55. b4 {[%clk 0:00:04.7]} 55... Nb7 {[%clk 0:00:08.3]} 56. a5+ {[%clk
0:00:05.6]} 56... Kb5 {[%clk 0:00:08.1]} 57. Kb3 {[%clk 0:00:06.5]} 57... Nd6
{[%clk 0:00:08.3]} 58. Kc3 {[%clk 0:00:06.9]} 58... Nc4 {[%clk 0:00:08.2]} 59.
a6 {[%clk 0:00:06.2]} 59... Nb6 {[%clk 0:00:08.9]} 60. a7 {[%clk 0:00:05.5]}
60... Ka6 {[%clk 0:00:09.2]} 61. Kd4 {[%clk 0:00:05.6]} 61... Kxa7 {[%clk
0:00:10.1]} 62. Kc5 {[%clk 0:00:06.5]} 62... Kb7 {[%clk 0:00:10.8]} 63. Kb5
{[%clk 0:00:06.3]} 63... Nc8 {[%clk 0:00:11.7]} 64. Kc5 {[%clk 0:00:07.2]} 64...
Na7 {[%clk 0:00:12.3]} 65. b5 {[%clk 0:00:07.9]} 65... Nc8 {[%clk 0:00:11.9]}
66. b6 {[%clk 0:00:08.8]} 66... Nxb6 {[%clk 0:00:12.8]} 1/2-1/2

[Event "Early-Titled-Tuesday-Blitz-September-05-2023"]
[Site "Chess.com"]
[Date "2023.09.05"]
[Round "1"]
[White "Manukyan_Artak"]
[Black "bascheyaro"]
[Result "0-1"]
[WhiteElo "2450"]
[BlackElo "2814"]
[TimeControl "180+1"]
[EndTime "8:08:19 PDT"]
[Termination "bascheyaro won by resignation"]

1. e4 {[%clk 0:02:54.2]} 1... e6 {[%clk 0:02:59.9]} 2. d4 {[%clk 0:02:52.5]}
2... d5 {[%clk 0:03:00.1]} 3. e5 {[%clk 0:02:52.5]} 3... c5 {[%clk 0:03:00.3]}
4. c3 {[%clk 0:02:52.5]} 4... Qb6 {[%clk 0:03:00.7]} 5. Nf3 {[%clk 0:02:53.1]}
5... Bd7 {[%clk 0:03:01.2]} 6. a3 {[%clk 0:02:53.6]} 6... Bb5 {[%clk 0:03:01.4]}
7. c4 {[%clk 0:02:53.8]} 7... Bxc4 {[%clk 0:03:01.6]} 8. Bxc4 {[%clk 0:02:53.5]}
8... dxc4 {[%clk 0:03:02.5]} 9. Nbd2 {[%clk 0:02:53.7]} 9... Qa6 {[%clk
0:02:58.6]} 10. Qe2 {[%clk 0:02:44.9]} 10... Nc6 {[%clk 0:02:19.7]} 11. dxc5
{[%clk 0:02:36.1]} 11... c3 {[%clk 0:02:19.6]} 12. bxc3 {[%clk 0:02:33.9]} 12...
Qxe2+ {[%clk 0:02:19.6]} 13. Kxe2 {[%clk 0:02:34.8]} 13... Bxc5 {[%clk
0:02:14.2]} 14. Ne4 {[%clk 0:02:34.8]} 14... Be7 {[%clk 0:02:10.3]} 15. a4
{[%clk 0:02:33.6]} 15... f5 {[%clk 0:02:08.4]} 16. exf6 {[%clk 0:02:33]} 16...
gxf6 {[%clk 0:02:08.5]} 17. Ba3 {[%clk 0:02:31.3]} 17... f5 {[%clk 0:02:07.7]}
18. Neg5 {[%clk 0:02:21.9]} 18... Bxa3 {[%clk 0:02:07.4]} 19. Rxa3 {[%clk
0:02:21.3]} 19... Ke7 {[%clk 0:02:08.1]} 20. Re1 {[%clk 0:02:15.7]} 20... h6
{[%clk 0:02:06.4]} 21. Nh3 {[%clk 0:02:12.8]} 21... Nf6 {[%clk 0:02:03.3]} 22.
Nf4 {[%clk 0:02:08.4]} 22... Kf7 {[%clk 0:02:03.3]} 23. Nd4 {[%clk 0:01:48.8]}
23... Nd8 {[%clk 0:01:41.5]} 24. Kf1 {[%clk 0:01:44.8]} 24... Re8 {[%clk
0:01:41.1]} 25. Nd3 {[%clk 0:01:40.8]} 25... Nd7 {[%clk 0:01:36.3]} 26. Nb5
{[%clk 0:01:36]} 26... Ke7 {[%clk 0:01:30.6]} 27. Nc7 {[%clk 0:01:34.6]} 27...
Rc8 {[%clk 0:01:27.8]} 28. Nxe8 {[%clk 0:01:34.3]} 28... Kxe8 {[%clk 0:01:28.7]}
29. Rb3 {[%clk 0:01:19.1]} 29... Rc4 {[%clk 0:01:25.7]} 30. a5 {[%clk
0:01:11.8]} 30... Ra4 {[%clk 0:01:25.3]} 31. Rb5 {[%clk 0:01:00.8]} 31... Kf7
{[%clk 0:01:12]} 32. Ne5+ {[%clk 0:00:50.6]} 32... Nxe5 {[%clk 0:01:11.5]} 33.
Rbxe5 {[%clk 0:00:50.1]} 33... Rc4 {[%clk 0:00:56.7]} 34. Rd1 {[%clk 0:00:44]}
34... Ke7 {[%clk 0:00:51.4]} 35. Re3 {[%clk 0:00:40.2]} 35... Nc6 {[%clk
0:00:47.2]} 36. Ra1 {[%clk 0:00:38.5]} 36... h5 {[%clk 0:00:40.2]} 37. g3 {[%clk
0:00:32.6]} 37... Rc5 {[%clk 0:00:32.4]} 38. a6 {[%clk 0:00:29.1]} 38... b6
{[%clk 0:00:32.8]} 39. f4 {[%clk 0:00:28.6]} 39... Rc4 {[%clk 0:00:20.6]} 40.
Kg2 {[%clk 0:00:28.6]} 40... h4 {[%clk 0:00:20.4]} 41. Rae1 {[%clk 0:00:23.8]}
41... Nd8 {[%clk 0:00:19.6]} 42. Rd1 {[%clk 0:00:24.1]} 42... hxg3 {[%clk
0:00:19.8]} 43. Kxg3 {[%clk 0:00:23.5]} 43... Ra4 {[%clk 0:00:19.6]} 44. Red3
{[%clk 0:00:23.6]} 44... Nc6 {[%clk 0:00:13.3]} 45. Rd7+ {[%clk 0:00:23.5]}
45... Kf6 {[%clk 0:00:13.8]} 46. Rc7 {[%clk 0:00:24.4]} 46... Ne7 {[%clk
0:00:07.1]} 47. Rdd7 {[%clk 0:00:24]} 47... Nd5 {[%clk 0:00:06.8]} 48. Rf7+
{[%clk 0:00:23.4]} 48... Kg6 {[%clk 0:00:06.8]} 49. Rg7+ {[%clk 0:00:24.3]}
49... Kh6 {[%clk 0:00:05.9]} 50. Rh7+ {[%clk 0:00:24.2]} 50... Kg6 {[%clk
0:00:06.4]} 51. Rxa7 {[%clk 0:00:22.9]} 51... Nxf4 {[%clk 0:00:06.5]} 52. Rag7+
{[%clk 0:00:20.7]} 52... Kf6 {[%clk 0:00:07.1]} 53. a7 {[%clk 0:00:21]} 53...
Nh5+ {[%clk 0:00:07.5]} 54. Rxh5 {[%clk 0:00:17.7]} 54... Kxg7 {[%clk 0:00:08]}
55. Rg5+ {[%clk 0:00:14.5]} 55... Kf6 {[%clk 0:00:08.5]} 56. h4 {[%clk
0:00:14.6]} 56... Rxa7 {[%clk 0:00:08.5]} 57. Rg8 {[%clk 0:00:14.8]} 57... Rg7+
{[%clk 0:00:08.1]} 58. Rxg7 {[%clk 0:00:14.6]} 58... Kxg7 {[%clk 0:00:09]} 59.
h5 {[%clk 0:00:12.7]} 59... e5 {[%clk 0:00:09.2]} 60. Kh4 {[%clk 0:00:12.3]}
60... Kh6 {[%clk 0:00:09.7]} 61. c4 {[%clk 0:00:11.8]} 61... e4 {[%clk
0:00:10.1]} 0-1